[Event "Swiss Championship U10 2022"]
[Site "Biel"]
[Date "2022.07.19"]
[Round "3.8"]
[White "Cavadini, Tommaso"]
[Black "Parmelin, Axel"]
[Result "1-0"]
[ECO "C02"]
[WhiteElo "1290"]
[BlackElo "1298"]
[Annotator "NA RC COMBH"]
[PlyCount "53"]
[EventDate "2022.07.18"]
[EventType "swiss"]
[EventCountry "SUI"]
[SourceTitle "playchess.com"]
[Source "ChessBase"]
[SourceQuality "1"]
[TimeControl "5400+30"]

1. e4 {[%emt 0:00:04]} e6 {[%emt 0:00:05]} 2. d4 {[%emt 0:00:11]} d5 {[%emt 0:00:05]} 3. e5 {[%emt 0:00:09]} c5 {[%emt 0:00:11]} 4. c3 {[%emt 0:00:16]} Qb6 {[%emt 0:00:09]} 5. Nf3 {[%emt 0:00:21]} Nc6 {[%emt 0:00:09]} 6. Bd3 {[%emt 0:00:17]} Bd7 {[%emt 0:00:12]} 7. O-O {[%emt 0:00:19]} cxd4 {[%emt 0:00:24]} 8. cxd4 {[%emt 0:00:13]} Nxd4 {[%emt 0:00:10]} 9. Nxd4 {[%emt 0:00:13]} Qxd4 {[%emt 0:00:10]} 10. Qe2 {[%emt 0:00:23]} f6 {[%emt 0:01:07]} 11. exf6 {[%emt 0:02:52]} Nxf6 {[%emt 0:00:39]} 12. Nc3 {[%emt 0:00:50]} Qb6 {[%emt 0:00:33]} 13. Bg5 {[%emt 0:01:25]} Bd6 {[%emt 0:00:39]} 14. Bxf6 {[%emt 0:01:07]} gxf6 {[%emt 0:00:35]} 15. Nxd5 {[%emt 0:00:52]} Qc6 {[%emt 0:01:46]} 16. Nxf6+ {[%emt 0:00:48]} Ke7 {[%emt 0:01:08]} 17. Nxd7 {[%emt 0:01:22]} Kxd7 {[%emt 0:00:25]} 18. Bb5 {[%emt 0:00:14]} Rhg8 {[%emt 0:01:08]} 19. Bxc6+ {[%emt 0:01:29]} bxc6 {[%emt 0:00:07]} 20. g3 {[%emt 0:00:49]} h6 {[%emt 0:00:00]} 21. Qd2 {[%emt 0:00:00]} h5 {[%emt 0:00:34]} 22. Rfd1 {[%emt 0:00:04]} Kc7 {[%emt 0:00:00]} 23. Qxd6+ {[%emt 0:00:27]} Kb6 {[%emt 0:00:00]} 24. Rac1 {[%emt 0:00:39]} Rac8 {[%emt 0:00:06]} 25. Rd3 {[%emt 0:01:21]} Rg5 {[%emt 0:01:43]} 26. Rb3+ {[%emt 0:00:45]} Ka5 {[%emt 0:00:30]} 27. Qa3# {[%emt 0:00:15]} 1-0

[Event "Swiss Championship U10 2022"]
[Site "Biel"]
[Date "2022.07.19"]
[Round "4.1"]
[White "Kumar, Shreyank"]
[Black "Domschke, Mischa"]
[Result "0-1"]
[ECO "D20"]
[WhiteElo "1404"]
[BlackElo "1565"]
[Annotator "NA RC COMBH"]
[PlyCount "80"]
[EventDate "2022.07.18"]
[EventType "swiss"]
[EventCountry "SUI"]
[SourceTitle "playchess.com"]
[Source "ChessBase"]
[SourceQuality "1"]
[TimeControl "5400+30"]

1. e4 {[%emt 0:00:08]} e6 {[%emt 0:00:04]} 2. d4 {[%emt 0:00:02]} d5 {[%emt 0:00:17]} 3. exd5 {[%emt 0:00:07]} exd5 {[%emt 0:00:31]} 4. c4 {[%emt 0:00:17]} dxc4 {[%emt 0:00:09]} 5. Bxc4 {[%emt 0:00:08]} Nf6 {[%emt 0:00:25]} 6. Bg5 {[%emt 0:00:17]} Be7 {[%emt 0:00:10]} 7. Nf3 {[%emt 0:00:21]} O-O {[%emt 0:00:19]} 8. h3 {[%emt 0:00:10]} Bf5 {[%emt 0:00:09]} 9. O-O {[%emt 0:00:21]} Nbd7 {[%emt 0:00:09]} 10. Bd3 {[%emt 0:00:11]} Bxd3 {[%emt 0:00:09]} 11. Qxd3 {[%emt 0:00:31]} c6 {[%emt 0:00:35]} 12. Re1 {[%emt 0:01:09]} Nc5 {[%emt 0:01:03]} 13. Qe2 {[%emt 0:00:21]} Ne6 {[%emt 0:00:30]} 14. Nc3 {[%emt 0:01:04]} Qc7 {[%emt 0:01:40]} 15. Bxf6 {[%emt 0:00:14]} Bxf6 {[%emt 0:00:50]} 16. Qe3 {[%emt 0:01:32]} Rfe8 {[%emt 0:00:00]} 17. Rab1 {[%emt 0:01:40]} Qd7 {[%emt 0:00:03]} 18. Rbd1 {[%emt 0:00:56]} Nxd4 {[%emt 0:01:41]} 19. Rxd4 {[%emt 0:01:47]} Bxd4 {[%emt 0:02:13]} 20. Qd2 {[%emt 0:01:13]} Rxe1+ {[%emt 0:01:15]} 21. Nxe1 {[%emt 0:00:00]} Rd8 {[%emt 0:00:26]} 22. Nf3 {[%emt 0:00:16]} Bxc3 {[%emt 0:00:25]} 23. Qxc3 {[%emt 0:00:01]} f6 {[%emt 0:00:41]} 24. Qb3+ {[%emt 0:00:32]} Qf7 {[%emt 0:00:10]} 25. Qa3 {[%emt 0:00:54]} b6 {[%emt 0:01:09]} 26. Qa4 {[%emt 0:00:00]} c5 {[%emt 0:00:36]} 27. a3 {[%emt 0:00:12]} Qb7 {[%emt 0:00:31]} 28. Qg4 {[%emt 0:02:44]} Qd7 {[%emt 0:01:15]} 29. Qc4+ {[%emt 0:00:00]} Qd5 {[%emt 0:00:54]} 30. Qa6 {[%emt 0:00:35]} Qd1+ {[%emt 0:00:47]} 31. Kh2 {[%emt 0:00:00]} Qd6+ {[%emt 0:00:23]} 32. Kg1 {[%emt 0:00:00]} Qc7 {[%emt 0:00:00]} 33. Qc4+ {[%emt 0:00:00]} Kf8 {[%emt 0:00:06]} 34. g3 {[%emt 0:00:00]} Qc6 {[%emt 0:00:55]} 35. Kg2 {[%emt 0:01:43]} b5 {[%emt 0:00:20]} 36. Qc3 {[%emt 0:00:48]} c4 {[%emt 0:00:12]} 37. Qa5 {[%emt 0:01:22]} Rd3 {[%emt 0:00:21]} 38. Qb4+ {[%emt 0:00:38]} Kf7 {[%emt 0:00:21]} 39. Qe1 {[%emt 0:01:49]} Qxf3+ {[%emt 0:00:14]} 40. Kh2 {[%emt 0:00:06]} Rd1 {[%emt 0:02:04]} 0-1

[Event "Swiss Championship U10 2022"]
[Site "Biel"]
[Date "2022.07.19"]
[Round "4.2"]
[White "Saminskij, Jan"]
[Black "Gong, Yansheng"]
[Result "1-0"]
[ECO "D07"]
[WhiteElo "1487"]
[BlackElo "1285"]
[Annotator "NA RC COMBH"]
[PlyCount "33"]
[EventDate "2022.07.18"]
[EventType "swiss"]
[EventCountry "SUI"]
[SourceTitle "playchess.com"]
[Source "ChessBase"]
[SourceQuality "1"]
[TimeControl "5400+30"]

1. Nf3 {[%emt 0:01:35]} Nc6 {[%emt 0:01:39]} 2. d4 {[%emt 0:01:59]} d5 {[%emt 0:00:56]} 3. Bf4 {[%emt 0:01:28]} Nf6 {[%emt 0:01:09]} 4. c4 {[%emt 0:02:12]} e6 {[%emt 0:00:45]} 5. Nc3 {[%emt 0:02:00]} Be7 {[%emt 0:04:29]} 6. Ne5 {[%emt 0:04:27]} O-O {[%emt 0:04:20]} 7. Nxc6 {[%emt 0:00:47]} bxc6 {[%emt 0:06:33]} 8. g3 {[%emt 0:05:42]} Bb7 {[%emt 0:05:05]} 9. c5 {[%emt 0:04:18]} Qd7 {[%emt 0:01:34]} 10. Bg2 {[%emt 0:04:10]} Ba6 {[%emt 0:03:03]} 11. O-O {[%emt 0:04:21]} Rab8 {[%emt 0:06:53]} 12. Qa4 {[%emt 0:04:36]} Bb5 {[%emt 0:09:46]} 13. Qxa7 {[%emt 0:06:33]} Qe8 {[%emt 0:06:37]} 14. Qxc7 {[%emt 0:05:29]} Ra8 {[%emt 0:02:34]} 15. a4 {[%emt 0:32:20]} Bd8 {[%emt 0:00:13]} 16. Qb7 {[%emt 0:00:42]} Ba5 {[%emt 0:29:13]} 17. axb5 {[%emt 0:08:36]} 1-0

[Event "Swiss Championship U10 2022"]
[Site "Biel"]
[Date "2022.07.19"]
[Round "4.3"]
[White "Pahud, Kylian"]
[Black "Chockalingam, Vishak"]
[Result "0-1"]
[ECO "B13"]
[WhiteElo "1373"]
[BlackElo "1285"]
[Annotator "NA RC COMBH"]
[PlyCount "120"]
[EventDate "2022.07.18"]
[EventType "swiss"]
[EventCountry "SUI"]
[SourceTitle "playchess.com"]
[Source "ChessBase"]
[SourceQuality "1"]
[TimeControl "5400+30"]

1. e4 {[%emt 0:01:18]} c6 {[%emt 0:00:21]} 2. d4 {[%emt 0:00:56]} d5 {[%emt 0:00:20]} 3. exd5 {[%emt 0:01:32]} cxd5 {[%emt 0:00:13]} 4. Bd3 {[%emt 0:00:35]} Nf6 {[%emt 0:00:23]} 5. Bf4 {[%emt 0:02:24]} Nc6 {[%emt 0:01:25]} 6. c3 {[%emt 0:01:04]} Bg4 {[%emt 0:00:59]} 7. Nf3 {[%emt 0:02:25]} e6 {[%emt 0:00:56]} 8. Nbd2 {[%emt 0:00:35]} Bd6 {[%emt 0:04:58]} 9. Bg3 {[%emt 0:00:46]} O-O {[%emt 0:01:47]} 10. O-O {[%emt 0:01:44]} Qc7 {[%emt 0:00:58]} 11. Qc2 {[%emt 0:01:37]} h6 {[%emt 0:01:24]} 12. Rae1 {[%emt 0:01:52]} Rac8 {[%emt 0:01:20]} 13. Qb1 {[%emt 0:02:02]} Bxf3 {[%emt 0:01:51]} 14. Nxf3 {[%emt 0:00:46]} a6 {[%emt 0:02:31]} 15. Ne5 {[%emt 0:00:43]} Bxe5 {[%emt 0:02:22]} 16. dxe5 {[%emt 0:00:38]} Nd7 {[%emt 0:00:25]} 17. f4 {[%emt 0:01:14]} Nc5 {[%emt 0:00:39]} 18. Bc2 {[%emt 0:03:02]} b5 {[%emt 0:05:06]} 19. b4 {[%emt 0:02:38]} Nd7 {[%emt 0:02:36]} 20. Rc1 {[%emt 0:03:53]} Nb6 {[%emt 0:00:55]} 21. Bd3 {[%emt 0:16:09]} Nc4 {[%emt 0:01:39]} 22. Rfe1 {[%emt 0:03:47]} a5 {[%emt 0:07:04]} 23. Re2 {[%emt 0:17:05]} Ne7 {[%emt 0:05:30]} 24. h3 {[%emt 0:12:50]} Rfe8 {[%emt 0:04:24]} 25. Bh2 {[%emt 0:02:01]} Qb6+ {[%emt 0:06:23]} 26. Kh1 {[%emt 0:03:29]} Nf5 {[%emt 0:01:42]} 27. g4 {[%emt 0:01:56]} Ne7 {[%emt 0:03:11]} 28. Bg1 {[%emt 0:04:46]} Qc7 {[%emt 0:01:08]} 29. Bc5 {[%emt 0:00:27]} Nc6 {[%emt 0:01:13]} 30. Rg1 {[%emt 0:00:28]} g5 {[%emt 0:02:04]} 31. Bh7+ {[%emt 0:00:28]} Kg7 {[%emt 0:00:50]} 32. fxg5 {[%emt 0:00:52]} hxg5 {[%emt 0:00:27]} 33. h4 {[%emt 0:00:27]} Rh8 {[%emt 0:00:27]} 34. Bd3 {[%emt 0:00:32]} Rxh4+ {[%emt 0:00:30]} 35. Rh2 {[%emt 0:00:11]} Rxh2+ {[%emt 0:00:15]} 36. Kxh2 {[%emt 0:00:01]} Qxe5+ {[%emt 0:00:12]} 37. Kg2 {[%emt 0:00:31]} Qxc3 {[%emt 0:01:41]} 38. bxa5 {[%emt 0:00:32]} Qd2+ {[%emt 0:00:35]} 39. Kg3 {[%emt 0:00:45]} Qf4+ {[%emt 0:02:29]} 40. Kg2 {[%emt 0:00:16]} Rh8 {[%emt 0:01:47]} 41. Rh1 {[%emt 0:00:40]} Qxg4+ {[%emt 0:00:48]} 42. Kf2 {[%emt 0:00:12]} Qf4+ {[%emt 0:02:22]} 43. Ke2 {[%emt 0:00:09]} Rh2+ {[%emt 0:01:28]} 44. Rxh2 {[%emt 0:00:02]} Qxh2+ {[%emt 0:00:14]} 45. Ke1 {[%emt 0:01:04]} Qd2+ {[%emt 0:02:16]} 46. Kf1 {[%emt 0:00:00]} N6xa5 {[%emt 0:02:44]} 47. Kg1 {[%emt 0:00:15]} Ne3 {[%emt 0:02:03]} 48. Qa1+ {[%emt 0:01:15]} f6 {[%emt 0:01:02]} 49. Bf8+ {[%emt 0:00:41]} Kf7 {[%emt 0:00:13]} 50. Bf1 {[%emt 0:00:17]} Nxf1 {[%emt 0:01:25]} 51. Kxf1 {[%emt 0:00:01]} Qf4+ {[%emt 0:00:25]} 52. Kg1 {[%emt 0:00:15]} Kxf8 {[%emt 0:00:13]} 53. a4 {[%emt 0:00:18]} bxa4 {[%emt 0:01:34]} 54. Qa3+ {[%emt 0:00:12]} Kf7 {[%emt 0:00:15]} 55. Qc5 {[%emt 0:00:12]} Nc4 {[%emt 0:00:41]} 56. Qa7+ {[%emt 0:00:16]} Kg6 {[%emt 0:00:11]} 57. Qxa4 {[%emt 0:00:28]} Ne3 {[%emt 0:00:38]} 58. Qe8+ {[%emt 0:00:00]} Kf5 {[%emt 0:00:06]} 59. Qf7 {[%emt 0:00:23]} Qf1+ {[%emt 0:00:14]} 60. Kh2 {[%emt 0:00:13]} Qg2# {[%emt 0:00:06]} 0-1

[Event "Swiss Championship U10 2022"]
[Site "Biel"]
[Date "2022.07.19"]
[Round "4.4"]
[White "Lerner, David B"]
[Black "Bhingare, Joshua"]
[Result "0-1"]
[ECO "B72"]
[WhiteElo "2125"]
[BlackElo "1342"]
[Annotator "TA"]
[PlyCount "54"]
[EventDate "2022.07.18"]
[EventType "swiss"]
[EventCountry "SUI"]
[SourceTitle "playchess.com"]
[Source "ChessBase"]
[SourceQuality "1"]
[TimeControl "5400+30"]

{[%evp 16,53,2,6,49,0,0,-306,-256,-265,-235,-380,-381,-378,-147,-155,-116,-187,159,155,203,196,285,286,317,279,428,378,739,642,639,627,736,-635,-616,-608,-595,-1001,-995,-29999]} 1. e4 {[%emt 0:00:27]} c5 {[%emt 0:00:34]} 2. Nf3 {[%emt 0:00:44]} d6 {[%emt 0:00:23]} 3. d4 {[%emt 0:01:22]} cxd4 {[%emt 0:00:00]} 4. Nxd4 {[%emt 0:00:48]} Nf6 {[%emt 0:00:50]} 5. Nc3 {[%emt 0:00:20]} g6 {[%emt 0:00:23]} 6. Be3 {[%emt 0:00:30]} Bg7 {[%emt 0:01:03]} 7. Be2 {[%emt 0:00:21]} Nc6 {[%emt 0:00:52]} 8. Nb3 {[%emt 0:00:39] 8.Qd2 is becoming the main line.} O-O {[%emt 0:00:40]} 9. Qd2 {[%emt 0:00:28]} Re8 {[%emt 0:01:00] B72: Sicilian Dragon: 6 Be3, lines with h3+Bc4 and sidelines.} 10. f4 {[%emt 0:00:34] [#]} (10. f3 $14 {feels stronger.}) 10... e5 $146 {[%emt 0:01:35]} ({Predecessor:} 10... Bg4 11. O-O-O a6 12. h3 Bxe2 13. Qxe2 Nh5 14. Qc4 Rc8 15. g4 b5 16. Qd5 Nb4 17. Qd2 Rxc3 18. bxc3 Nxa2+ {0-1 (26) Hutois,C (1480)-Naigelblat,M (1710) Avoine 2006}) 11. g4 $2 {[%emt 0:01:42][%mdl 8192]} (11. fxe5 $11 Nxe5 12. O-O) 11... Nxg4 {[%emt 0:01:05] Threatens to win with ...Qh4+. Black has a decisive advantage.} 12. Bxg4 {[%emt 0:01:33]} Bxg4 {[%emt 0:00:09]} 13. Qg2 {[%emt 0:00:39]} (13. f5 $142) 13... exf4 $19 {[%emt 0:00:21]} 14. Bxf4 {[%emt 0:00:34][%cal Be3f4,Bf4e5,Be5g7,Bg7d4][%mdl 32]} Bd7 {[%emt 0:00:33]} (14... Qh4+ $19 {and Black stays clearly on top.} 15. Kd2 Ne5) 15. O-O-O $17 {[%emt 0:01:04]} Ne5 {[%emt 0:02:38]} 16. h4 {[%emt 0:01:22] [#]} (16. Rxd6 $17 Nc4 17. Rd3) 16... Bg4 $2 {[%emt 0:06:06] This bishop pair is nice.} (16... Nc4 $1 $19 {[%cal Oc4b2] ...Nxb2! is the strong threat.} 17. h5 Bxc3 18. bxc3 Qf6) 17. Bxe5 $16 {[%emt 0:00:08][%mdl 64] Pin} Bxd1 {[%emt 0:00:14]} (17... Bh6+ $16 18. Rd2 dxe5) 18. Bxg7 $18 {[%emt 0:05:14]} Bxc2 {[%emt 0:01:32] [#]} (18... Kxg7 {was necessary.} 19. Kxd1 (19. Rxd1 Qxh4 20. Nd4 Kh8 $18) 19... Rc8) 19. Bd4 $1 {[%emt 0:02:12]} Bxb3 {[%emt 0:00:00]} 20. axb3 {[%emt 0:00:51]} Qa5 {[%emt 0:07:06]} (20... Rc8 $142 21. Kb1 Rxc3 22. Bxc3 (22. bxc3 Qe7 $18) 22... Qe7) 21. h5 {[%emt 0:02:54]} Re6 {[%emt 0:00:00]} (21... Rac8 22. Qf3 Qg5+ 23. Kb1 Rxc3 24. bxc3 Qe7) 22. hxg6 {[%emt 0:04:49]} Rxg6 {[%emt 0:01:47]} 23. Qh3 {[%emt 0:05:01]} h6 {[%emt 0:03:37]} 24. Qe3 {[%emt 0:00:00][%mdl 8192]} (24. Nd5 $18) 24... Qa1+ $19 {[%emt 0:01:01]} 25. Nb1 {[%emt 0:00:03]} Rc8+ {[%emt 0:01:18]} 26. Kd2 {[%emt 0:01:00]} Rg2+ {[%emt 0:00:00]} 27. Kd3 {[%emt 0:01:02]} Qa6# {[%emt 0:00:18] Weighted Error Value: White=1.48/Black=0.97} 0-1

[Event "Swiss Championship U10 2022"]
[Site "Biel"]
[Date "2022.07.19"]
[Round "4.5"]
[White "Jordan, Christina"]
[Black "Wilhelm, Marco"]
[Result "1-0"]
[ECO "C11"]
[WhiteElo "1367"]
[BlackElo "1332"]
[Annotator "NA RC COMBH"]
[PlyCount "99"]
[EventDate "2022.07.18"]
[EventType "swiss"]
[EventCountry "SUI"]
[SourceTitle "playchess.com"]
[Source "ChessBase"]
[SourceQuality "1"]
[TimeControl "5400+30"]

1. e4 {[%emt 0:00:01]} e6 {[%emt 0:00:12]} 2. d4 {[%emt 0:00:06]} d5 {[%emt 0:00:08]} 3. Nc3 {[%emt 0:00:08]} Nf6 {[%emt 0:00:25]} 4. e5 {[%emt 0:00:17]} Nfd7 {[%emt 0:00:21]} 5. Nf3 {[%emt 0:00:14]} c5 {[%emt 0:00:11]} 6. Be3 {[%emt 0:00:14]} Qb6 {[%emt 0:00:49]} 7. Na4 {[%emt 0:01:12]} Qc7 {[%emt 0:00:54]} 8. Nc3 {[%emt 0:01:09]} Nc6 {[%emt 0:00:40]} 9. Bb5 {[%emt 0:03:34]} a6 {[%emt 0:02:09]} 10. Bxc6 {[%emt 0:00:25]} Qxc6 {[%emt 0:00:12]} 11. O-O {[%emt 0:00:53]} Be7 {[%emt 0:00:36]} 12. Qd3 {[%emt 0:02:01]} O-O {[%emt 0:04:33]} 13. Bg5 {[%emt 0:01:24]} Re8 {[%emt 0:01:02]} 14. Bxe7 {[%emt 0:01:00]} Rxe7 {[%emt 0:00:00]} 15. Ng5 {[%emt 0:00:15]} Nf8 {[%emt 0:00:31]} 16. f4 {[%emt 0:00:52]} h6 {[%emt 0:00:32]} 17. Nf3 {[%emt 0:00:19]} cxd4 {[%emt 0:03:50]} 18. Nxd4 {[%emt 0:00:37]} Qb6 {[%emt 0:01:18]} 19. b3 {[%emt 0:01:24]} Bd7 {[%emt 0:00:00]} 20. f5 {[%emt 0:00:49]} exf5 {[%emt 0:00:36]} 21. Nxd5 {[%emt 0:01:04]} Qd8 {[%emt 0:06:32]} 22. Nxe7+ {[%emt 0:00:00]} Qxe7 {[%emt 0:00:09]} 23. Nxf5 {[%emt 0:00:00]} Qc5+ {[%emt 0:01:45]} 24. Kh1 {[%emt 0:00:00]} Qxe5 {[%emt 0:01:04]} 25. Rae1 {[%emt 0:00:25]} Qc5 {[%emt 0:02:23]} 26. Nd6 {[%emt 0:03:05]} Be6 {[%emt 0:05:53]} 27. Ne4 {[%emt 0:01:04]} Qc6 {[%emt 0:03:21]} 28. c4 {[%emt 0:02:12]} a5 {[%emt 0:01:00]} 29. Qg3 {[%emt 0:01:21]} Rd8 {[%emt 0:02:16]} 30. Nf6+ {[%emt 0:00:38]} Kh8 {[%emt 0:01:20]} 31. Nh5 {[%emt 0:00:38]} Ng6 {[%emt 0:00:21]} 32. Qc3 {[%emt 0:00:56]} f6 {[%emt 0:01:46]} 33. Nxf6 {[%emt 0:00:30]} Nh4 {[%emt 0:02:35]} 34. Rg1 {[%emt 0:02:53]} Bd5 {[%emt 0:01:09]} 35. Nxd5 {[%emt 0:00:29]} Rxd5 {[%emt 0:00:30]} 36. Qg3 {[%emt 0:01:45]} Rd4 {[%emt 0:06:28]} 37. Qe3 {[%emt 0:04:18]} Rd8 {[%emt 0:00:44]} 38. Qe7 {[%emt 0:01:31]} Rd4 {[%emt 0:08:00]} 39. Qe8+ {[%emt 0:00:37]} Qxe8 {[%emt 0:00:28]} 40. Rxe8+ {[%emt 0:00:05]} Kh7 {[%emt 0:00:39]} 41. Rb8 {[%emt 0:00:20]} Rd7 {[%emt 0:01:10]} 42. Ra8 {[%emt 0:00:20]} b6 {[%emt 0:00:01]} 43. Ra6 {[%emt 0:00:08]} Rd6 {[%emt 0:00:27]} 44. c5 {[%emt 0:00:11]} Rd2 {[%emt 0:00:31]} 45. cxb6 {[%emt 0:00:31]} Rd6 {[%emt 0:00:47]} 46. Rxa5 {[%emt 0:00:08]} Rxb6 {[%emt 0:00:20]} 47. h3 {[%emt 0:00:34]} Nf5 {[%emt 0:01:06]} 48. Rxf5 {[%emt 0:00:08]} Ra6 {[%emt 0:00:25]} 49. Ra1 {[%emt 0:00:11]} Kg6 {[%emt 0:00:16]} 50. Rff1 {[%emt 0:00:09]} 1-0

[Event "Swiss Championship U10 2022"]
[Site "Biel"]
[Date "2022.07.19"]
[Round "4.6"]
[White "Sunilkumar, Prathyush"]
[Black "Bachmann, Elias"]
[Result "0-1"]
[ECO "D00"]
[WhiteElo "1336"]
[BlackElo "1319"]
[Annotator "NA RC COMBH"]
[PlyCount "72"]
[EventDate "2022.07.18"]
[EventType "swiss"]
[EventCountry "SUI"]
[SourceTitle "playchess.com"]
[Source "ChessBase"]
[SourceQuality "1"]
[TimeControl "5400+30"]

1. d4 {[%emt 0:00:02]} d5 {[%emt 0:00:06]} 2. e4 {[%emt 0:00:07]} dxe4 {[%emt 0:00:08]} 3. Nc3 {[%emt 0:00:08]} Nf6 {[%emt 0:00:48]} 4. f3 {[%emt 0:01:38]} Bf5 {[%emt 0:00:39]} 5. Bc4 {[%emt 0:00:50]} Nc6 {[%emt 0:01:21]} 6. d5 {[%emt 0:00:42]} Ne5 {[%emt 0:01:26]} 7. Bb3 {[%emt 0:00:38]} e6 {[%emt 0:03:25]} 8. Bg5 {[%emt 0:01:03]} exd5 {[%emt 0:00:27]} 9. Nxd5 {[%emt 0:00:18]} Be7 {[%emt 0:00:49]} 10. Bxf6 {[%emt 0:08:24]} Bxf6 {[%emt 0:00:21]} 11. g4 {[%emt 0:01:24]} Nxf3+ {[%emt 0:01:29]} 12. Nxf3 {[%emt 0:02:03]} Bxg4 {[%emt 0:00:09]} 13. Rg1 {[%emt 0:07:27]} Bxf3 {[%emt 0:00:35]} 14. Qd2 {[%emt 0:01:17]} Qd6 {[%emt 0:01:10]} 15. Kf1 {[%emt 0:01:14]} O-O-O {[%emt 0:00:00]} 16. Qf2 {[%emt 0:03:32]} Rhe8 {[%emt 0:01:55]} 17. a4 {[%emt 0:00:28]} c6 {[%emt 0:01:09]} 18. Nxf6 {[%emt 0:00:50]} Qxf6 {[%emt 0:00:13]} 19. a5 {[%emt 0:00:31]} a6 {[%emt 0:00:12]} 20. Re1 {[%emt 0:00:27]} Qf4 {[%emt 0:01:13]} 21. Qg3 {[%emt 0:00:30]} Qh6 {[%emt 0:02:16]} 22. Bxf7 {[%emt 0:01:01]} Rf8 {[%emt 0:00:36]} 23. Qxg7 {[%emt 0:00:43]} Qxg7 {[%emt 0:00:06]} 24. Rxg7 {[%emt 0:00:19]} Rd7 {[%emt 0:00:04]} 25. Be6 {[%emt 0:01:23]} Bg4+ {[%emt 0:00:29]} 26. Kg2 {[%emt 0:00:36]} Bxe6 {[%emt 0:00:12]} 27. Rg3 {[%emt 0:00:28]} Rd2+ {[%emt 0:00:34]} 28. Kh1 {[%emt 0:00:00]} Bd5 {[%emt 0:00:45]} 29. Rge3 {[%emt 0:00:10]} Rxc2 {[%emt 0:01:00]} 30. R3e2 {[%emt 0:01:49]} e3+ {[%emt 0:02:13]} 31. Kg1 {[%emt 0:00:00]} Rg8+ {[%emt 0:00:08]} 32. Kf1 {[%emt 0:00:00]} Bg2+ {[%emt 0:00:25]} 33. Kg1 {[%emt 0:00:00]} Bf3+ {[%emt 0:00:12]} 34. Kf1 {[%emt 0:00:00]} Bxe2+ {[%emt 0:00:14]} 35. Rxe2 {[%emt 0:00:00]} Rf8+ {[%emt 0:00:14]} 36. Ke1 {[%emt 0:00:00]} Rc1# {[%emt 0:00:10]} 0-1

[Event "Swiss Championship U10 2022"]
[Site "Biel"]
[Date "2022.07.19"]
[Round "4.7"]
[White "Rams, Vedha"]
[Black "Cavadini, Tommaso"]
[Result "1/2-1/2"]
[ECO "C50"]
[WhiteElo "1312"]
[BlackElo "1290"]
[Annotator "NA RC COMBH"]
[PlyCount "93"]
[EventDate "2022.07.18"]
[EventType "swiss"]
[EventCountry "SUI"]
[SourceTitle "playchess.com"]
[Source "ChessBase"]
[SourceQuality "1"]
[TimeControl "5400+30"]

1. e4 {[%emt 0:00:01]} e5 {[%emt 0:00:09]} 2. Nf3 {[%emt 0:00:18]} Nc6 {[%emt 0:00:00]} 3. Bc4 {[%emt 0:00:18]} Bc5 {[%emt 0:00:18]} 4. Nc3 {[%emt 0:00:31]} Nf6 {[%emt 0:00:13]} 5. d3 {[%emt 0:00:13]} h6 {[%emt 0:01:00]} 6. h3 {[%emt 0:00:31]} d6 {[%emt 0:00:11]} 7. Be3 {[%emt 0:00:31]} Bb4 {[%emt 0:01:27]} 8. Qd2 {[%emt 0:03:47]} Be6 {[%emt 0:03:27]} 9. Bb5 {[%emt 0:02:30]} a6 {[%emt 0:02:20]} 10. Bxc6+ {[%emt 0:00:00]} bxc6 {[%emt 0:00:11]} 11. a3 {[%emt 0:00:00]} Ba5 {[%emt 0:00:53]} 12. b4 {[%emt 0:00:00]} Bb6 {[%emt 0:00:10]} 13. Bxb6 {[%emt 0:00:00]} cxb6 {[%emt 0:00:14]} 14. d4 {[%emt 0:00:00]} exd4 {[%emt 0:02:16]} 15. Nxd4 {[%emt 0:00:06]} c5 {[%emt 0:00:00]} 16. Nf5 {[%emt 0:02:33]} O-O {[%emt 0:01:36]} 17. O-O {[%emt 0:00:00]} Nxe4 {[%emt 0:01:03]} 18. Nxe4 {[%emt 0:00:00]} Bxf5 {[%emt 0:00:24]} 19. Nxd6 {[%emt 0:01:07]} Qd7 {[%emt 0:01:50]} 20. Rfd1 {[%emt 0:00:39]} Rad8 {[%emt 0:01:57]} 21. Nc4 {[%emt 0:01:20]} Qxd2 {[%emt 0:00:00]} 22. Rxd2 {[%emt 0:00:56]} Rxd2 {[%emt 0:00:10]} 23. Nxd2 {[%emt 0:01:09]} cxb4 {[%emt 0:00:00]} 24. axb4 {[%emt 0:00:58]} Ra8 {[%emt 0:00:22]} 25. c3 {[%emt 0:00:38]} a5 {[%emt 0:00:56]} 26. bxa5 {[%emt 0:03:48]} Rxa5 {[%emt 0:02:13]} 27. Rxa5 {[%emt 0:00:00]} bxa5 {[%emt 0:00:55]} 28. Nc4 {[%emt 0:00:13]} a4 {[%emt 0:00:38]} 29. Na3 {[%emt 0:00:47]} Kf8 {[%emt 0:00:21]} 30. Kf1 {[%emt 0:00:00]} Ke7 {[%emt 0:00:53]} 31. Ke2 {[%emt 0:00:00]} Kd6 {[%emt 0:01:38]} 32. g4 {[%emt 0:01:26]} Be6 {[%emt 0:01:01]} 33. Kd3 {[%emt 0:00:26]} Kd5 {[%emt 0:02:52]} 34. c4+ {[%emt 0:00:37]} Kc5 {[%emt 0:00:20]} 35. Kc3 {[%emt 0:00:29]} h5 {[%emt 0:01:42]} 36. f3 {[%emt 0:01:16]} Bd7 {[%emt 0:05:38]} 37. Nc2 {[%emt 0:08:05]} Bc6 {[%emt 0:00:47]} 38. f4 {[%emt 0:00:23]} Bd7 {[%emt 0:00:00]} 39. f5 {[%emt 0:00:38]} g6 {[%emt 0:00:00]} 40. Ne3 {[%emt 0:04:21]} hxg4 {[%emt 0:01:35]} 41. hxg4 {[%emt 0:00:21]} gxf5 {[%emt 0:00:00]} 42. gxf5 {[%emt 0:02:30]} a3 {[%emt 0:00:48]} 43. Kb3 {[%emt 0:00:45]} a2 {[%emt 0:00:38]} 44. Kxa2 {[%emt 0:00:13]} Bxf5 {[%emt 0:00:00]} 45. Nxf5 {[%emt 0:00:00]} Kxc4 {[%emt 0:00:00]} 46. Nd6+ {[%emt 0:00:15]} Kd5 {[%emt 0:00:17]} 47. Nxf7 {[%emt 0:00:17]} 1/2-1/2

[Event "Swiss Championship U10 2022"]
[Site "Biel"]
[Date "2022.07.19"]
[Round "4.8"]
[White "Gregor, Elena"]
[Black "Parmelin, Axel"]
[Result "0-1"]
[ECO "C11"]
[WhiteElo "1258"]
[BlackElo "1298"]
[Annotator "NA RC COMBH"]
[PlyCount "48"]
[EventDate "2022.07.18"]
[EventType "swiss"]
[EventCountry "SUI"]
[SourceTitle "playchess.com"]
[Source "ChessBase"]
[SourceQuality "1"]
[TimeControl "5400+30"]

1. e4 {[%emt 0:00:05]} e6 {[%emt 0:00:06]} 2. d4 {[%emt 0:00:03]} d5 {[%emt 0:00:09]} 3. Nc3 {[%emt 0:00:09]} Nf6 {[%emt 0:00:12]} 4. e5 {[%emt 0:01:01]} Nfd7 {[%emt 0:00:11]} 5. Nf3 {[%emt 0:00:19]} c5 {[%emt 0:00:10]} 6. Bb5 {[%emt 0:00:57]} a6 {[%emt 0:00:19]} 7. Ba4 {[%emt 0:00:06]} b5 {[%emt 0:00:07]} 8. dxc5 {[%emt 0:01:02]} bxa4 {[%emt 0:00:13]} 9. Nxa4 {[%emt 0:00:28]} Bxc5 {[%emt 0:00:14]} 10. Nxc5 {[%emt 0:00:24]} Nxc5 {[%emt 0:00:11]} 11. Bg5 {[%emt 0:00:43]} Qc7 {[%emt 0:01:03]} 12. Qd4 {[%emt 0:01:39]} O-O {[%emt 0:00:44]} 13. Qg4 {[%emt 0:00:55]} Kh8 {[%emt 0:01:04]} 14. Qh4 {[%emt 0:01:47]} h6 {[%emt 0:01:03]} 15. Bxh6 {[%emt 0:04:03]} Kg8 {[%emt 0:00:39]} 16. Qg5 {[%emt 0:04:01]} f6 {[%emt 0:00:59]} 17. Qg6 {[%emt 0:01:56]} Rf7 {[%emt 0:01:34]} 18. exf6 {[%emt 0:00:35]} Rxf6 {[%emt 0:00:44]} 19. Qe8+ {[%emt 0:00:23]} Kh7 {[%emt 0:00:42]} 20. Bg5 {[%emt 0:00:28]} Rg6 {[%emt 0:01:41]} 21. Bf4 {[%emt 0:01:21]} Qxf4 {[%emt 0:00:26]} 22. Qxc8 {[%emt 0:00:37]} Rxg2 {[%emt 0:00:42]} 23. Rg1 {[%emt 0:01:16]} Qxf3 {[%emt 0:00:57]} 24. Kf1 {[%emt 0:02:34]} Qxf2# {[%emt 0:00:25]} 0-1